Cogmind - Beta 12 @@@ ROGUE MODE // 2023.07.09 @ 11:58:31 Player: ZOT Result: Destroyed by G-47 Trooper with Particle Gun Performance ------------- Evolutions (2) 1000 Regions Visited (4) 800 Robots Destroyed (49) 245 Value Destroyed (1401) 1401 Prototype IDs (4) 80 Alien Tech Used (0) 0 Bonus (70) 70 TOTAL SCORE: 3596 Bonus ------- Follower Combat Kills 70 Cogmind --------- Core Integrity 0/550 Matter 286/300 Energy 26/100 System Corruption 14% Temperature Cool (9) Movement Core (50) Location -8/Storage Parts ------- > --- POWER (1) -------- (None) > --- PROPULSION (4) --- (None) > --- UTILITY (4) ------ (None) > --- WEAPON (2) ------- (None) > --- INVENTORY (5) ---- Improved VTOL Module Reaction Control System Improved Field Recycling Unit (0) Heavy Assault Rifle Peak State ------------ > --- POWER ------------ Improved Ion Engine > --- PROPULSION ------- Improved VTOL Module Improved VTOL Module Improved VTOL Module Improved VTOL Module > --- UTILITY ---------- Large Storage Unit Weight Redist. System Trap Scanner Improved Terrain Scan Processor > --- WEAPON ----------- Great Maul Great Maul > --- INVENTORY -------- Improved Ion Engine Aluminum Leg Aluminum Leg Titanium Leg Cesium-ion Thruster Small Storage Unit Reaction Control System Improved Field Recycling Unit Arc Projector Heavy Assault Rifle Advanced EMP Blaster Datajack Remote Datajack Remote Datajack Mining Laser [Rating: 36] Favorites ----------- Power Improved Ion Engine Engine Improved Ion Engine Power Core Nuclear Core Propulsion Aluminum Leg Treads Advanced Treads Leg Aluminum Leg Wheel Wheel Flight Unit Improved VTOL Module Utility Small Storage Unit Device Improved Terrain Scanner Storage Small Storage Unit Processor Improved Terrain Scan Processor Weapon Great Maul Energy Gun Small Laser Ballistic Gun Light Assault Rifle Special Weapon Mining Laser Impact Weapon Great Maul Build | -11 -10 -9 -8 -8 ------- Run | Jun Mat Mat Mat Sto Slots Evolved 4 | . . 2 2 . Power . | . . . . . Propulsion 2 | . . . 2 . Utility 2 | . . 2 . . Weapon . | . . . . . Parts Attached 54 | 7 6 13 16 12 Power 8 | 1 . 3 3 1 Engine 7 | 1 . 3 2 1 Core 1 | . . . 1 . Reactor . | . . . . . Propulsion 23 | 2 3 2 8 8 Treads 2 | . . 2 . . Leg 13 | 2 3 . 4 4 Wheel 3 | . . . 3 . Hover . | . . . . . Flight 5 | . . . 1 4 Utility 11 | 2 1 2 5 1 Device 6 | 1 1 1 3 . Storage 3 | 1 . . 1 1 Processor 2 | . . 1 1 . Hackware . | . . . . . Protection . | . . . . . Artifact . | . . . . . Weapon 12 | 2 2 6 . 2 Energy Gun 3 | 1 1 . . 1 Energy Cannon . | . . . . . Ballistic Gun 1 | 1 . . . . Ballistic Cannon . | . . . . . Launcher . | . . . . . Special Weapon 3 | . 1 1 . 1 Impact Weapon 5 | . . 5 . . Slashing Weapon . | . . . . . Piercing Weapon . | . . . . . Special Melee Weapon . | . . . . . Unidentified Prototypes 1 | . . . . 1 Parts Lost 26 | . 4 5 7 10 Power 4 | . . 1 2 1 Propulsion 9 | . 1 . 4 4 Utility 7 | . 1 2 1 3 Weapon 6 | . 2 2 . 2 Highest Loss Streak 9 | . 2 4 2 9 To Critical Strikes . | . . . . . Average Slot Usage (%) 81 | . 95 85 80 54 Engine 8 | . 14 10 4 5 Core 1 | . . . 3 . Treads 7 | . . 17 3 . Leg 11 | . 25 4 13 8 Wheel 1 | . . . 6 . Flight 1 | . . . 2 9 Device 16 | . 13 18 19 9 Storage 10 | . 14 11 9 5 Processor 1 | . . 1 . 5 Energy Gun 3 | . 12 1 . . Ballistic Gun 1 | . 8 . . . Special Weapon 1 | . 5 1 . . Impact Weapon 13 | . . 18 18 10 Naked Turns 100 | . . . . 100 Heaviest Build 38 | 14 14 26 38 37 Greatest Support 48 | 20 20 44 44 48 Greatest Overweight (x) 9 | . 1 2 1 9 Average Overweight (x) . | . . . . . Largest Inventory Capacity 15 | 8 8 8 15 15 Average Capacity 8 | 7 8 8 9 11 Most Carried 15 | 7 8 8 12 15 Average Carried 7 | 4 7 7 7 10 Final Capacity 15 | 8 8 8 15 5 Final Carried 12 | 7 8 8 12 4 Class Distribution -------------------- 85% | Mutant 14% | Scavenger-Mutant Dominant Class ---------------- Mutant | -10/Materials Mutant | -9/Materials Mutant | -8/Materials Mutant | -8/Storage Resources | -11 -10 -9 -8 -8 ----------- Run | Jun Mat Mat Mat Sto Matter Collected 649 | 275 47 130 120 77 Remotely . | . . . . . Salvage Created 1603 | 113 161 524 694 111 Parts 53 | 5 7 16 23 2 Haulers Intercepted . | . . . . . Recyclers Shooed 1 | . . . . 1 Parts Field Recycled . | . . . . . Retrieved Matter . | . . . . . Parts Self-Destructed . | . . . . . Prevented . | . . . . . Kills | -11 -10 -9 -8 -8 ------- Run | Jun Mat Mat Mat Sto Combat Hostiles Destroyed 40 | . 6 15 17 2 Melee 20 | . . 8 11 1 Guns 6 | . 5 1 . . Cannons 1 | . 1 . . . Classes Destroyed 8 | 2 2 3 1 . Tunneler 3 | 2 . . 1 . Recycler 2 | 1 . . 1 . Operator 1 | . . 1 . . Watcher 3 | . . 2 1 . Swarmer 13 | . 3 4 6 . Grunt 17 | . 3 5 7 2 Brawler 1 | . . . 1 . Sentry 9 | . . 6 3 . Best Kill Streak 5 | 2 3 4 5 1 Combat Bots Only 4 | . 3 2 4 1 Max Kills in Single Turn 1 | 1 1 1 1 1 Gunslinging . | . . . . . Exploded . | . . . . . Melee 1 | . . 1 1 1 Uniques/NPCs Destroyed . | . . . . . Combat | -11 -10 -9 -8 -8 -------- Run | Jun Mat Mat Mat Sto Damage Taken 3309 | . 519 1038 855 897 Core 896 | . 92 249 150 405 Absorbed by Shields . | . . . . . Regen/Repaired (Parts) 128 | . 110 . 18 . Core Remaining (%) 66 | 100 63 37 . . Volleys Fired 61 | 5 36 7 . 13 Largest 2 | 2 2 2 . 1 Hottest 140 | 70 140 140 . 100 Shots Fired 90 | 10 55 12 . 13 Gun 79 | 10 54 6 . 9 Cannon . | . . . . . Launcher . | . . . . . Special 11 | . 1 6 . 4 Kinetic 27 | 5 22 . . . Thermal 54 | 5 33 12 . 4 Explosive . | . . . . . Electromagnetic 9 | . . . . 9 Robot Hit Streak 13 | 3 9 4 . 13 Robot Miss Streak 7 | 1 7 1 . . Penetration Max . | . . . . . Secondary Targets 1 | . 1 . . . Max Gunslinging Chain 1 | . 1 . . . Shots Hit Robots 128 | 6 31 39 35 17 Core Hits 37 | 5 14 7 8 3 Critical Kills 2 | . . . 2 . Critical Parts Destroyed 14 | . . 6 7 1 Critical Strikes 16 | . . 6 9 1 Smash 16 | . . 6 9 1 Melee Attacks 105 | . . 43 52 10 Impact 105 | . . 43 52 10 Slashing . | . . . . . Piercing . | . . . . . Sneak Attacks 3 | . . . 2 1 Combat Hostiles . | . . . . . Follow-up Attacks 9 | . . 5 4 . Damage Inflicted 3752 | 72 309 1340 1564 467 Guns 503 | 72 285 65 . 81 Cannons . | . . . . . Explosions . | . . . . . Melee 3173 | . . 1227 1564 382 Ramming 4 | . . . . 4 Kinetic 144 | 22 122 . . . Thermal 350 | 50 187 113 . . Explosive . | . . . . . Electromagnetic 81 | . . . . 81 Impact 3173 | . . 1227 1564 382 Slashing . | . . . . . Piercing . | . . . . . Highest Corruption 14 | . . . . 14 Average Corruption 13 | . . . . 13 Corruption Purged . | . . . . . Corruption Blocked . | . . . . . Effects 6 | . . . . 6 Message Errors 1 | . . . . 1 Matter Fused 2 | . . . . 2 Parts Rejected 1 | . . . . 1 Alerts 1 | . . . . 1 Misdirections 1 | . . . . 1 Overload Shots . | . . . . . Overflow Damage 979 | . . 389 563 27 Projectiles . | . . . . . Explosions . | . . . . . Melee 979 | . . 389 563 27 Knockbacks 8 | . . 3 3 2 Impact 8 | . . 3 3 2 Kinetic . | . . . . . Secondary . | . . . . . Self-Inflicted Damage 2 | . . . . 2 Shots . | . . . . . Rammed 1 | . . . . 1 Targets Rammed 1 | . . . . 1 Kicked . | . . . . . Crushed . | . . . . . Highest Temperature 175 | 40 175 170 4 36 Average Temperature 55 | 20 65 77 4 17 Received Heat Transfer 1266 | . 234 357 297 378 Siege Activations . | . . . . . Robots Corrupted . | . . . . . Combat Hostiles . | . . . . . Parts Fried 35 | . . 21 13 1 Impact Corruptions 42 | . . 18 22 2 Robots Melted . | . . . . . Combat Hostiles . | . . . . . Parts Melted 2 | 2 . . . . Heat Transferred 882 | 148 484 250 . . Parts Sabotaged . | . . . . . Parts Stolen . | . . . . . Parts Stripped . | . . . . . Power Chain Reactions . | . . . . . Missiles Intercepted . | . . . . . Alert | -11 -10 -9 -8 -8 ------- Run | Jun Mat Mat Mat Sto Peak Influence 415 | 15 167 314 372 415 Initial 135 | . 9 70 105 135 Average 163 | 6 98 164 219 195 Maximum Alert Level 2 | . . 1 1 2 Low Security (%) 66 | 100 100 66 36 70 Level 1 32 | . . 33 63 26 Level 2 . | . . . . 3 Level 3 . | . . . . . Level 4 . | . . . . . Level 5 . | . . . . . High Security . | . . . . . Max Security . | . . . . . Squads Dispatched 9 | . . 3 1 5 Investigation 5 | . . 2 1 2 Extermination . | . . . . . Reinforcement 2 | . . 1 . 1 Assault 2 | . . . . 2 Garrison . | . . . . . Intercept . | . . . . . Searches Triggered . | . . . . . Construction Impeded . | . . . . . Haulers Reinforced . | . . . . . Active Scanning Responses . | . . . . . Cargo Convoy Interrupts . | . . . . . Stealth | -11 -10 -9 -8 -8 --------- Run | Jun Mat Mat Mat Sto Distress Signals 3 | . 1 1 . 1 Communications Jammed . | . . . . . Distress Signals . | . . . . . Times Spotted 93 | . 15 23 22 33 Peak Tracking Total 9 | . 7 5 6 9 Tactical Retreats 8 | . 1 2 . 5 Traps | -11 -10 -9 -8 -8 ------- Run | Jun Mat Mat Mat Sto Traps Triggered 2 | . . . 1 1 Indirectly . | . . . . . Trap Hack Attempts . | . . . . . Triggered . | . . . . . Disarmed . | . . . . . Reprogrammed . | . . . . . Reused . | . . . . . Traps Extracted . | . . . . . Installed . | . . . . . Triggered . | . . . . . Machines | -11 -10 -9 -8 -8 ---------- Run | Jun Mat Mat Mat Sto Machines Disabled . | . . . . . Max in Single Turn . | . . . . . Machines Repaired . | . . . . . Machines Sabotaged . | . . . . . Overloaded Fab Kills . | . . . . . Hacking | -11 -10 -9 -8 -8 --------- Run | Jun Mat Mat Mat Sto Machines Accessed 14 | . 1 6 2 5 Terminals 11 | . . 5 1 5 Fabricators . | . . . . . Repair Stations 2 | . 1 . 1 . Recycling Units . | . . . . . Scanalyzers 1 | . . 1 . . Garrison Access . | . . . . . Total Hacks 47 | . 6 24 6 11 Successful 17 | . 4 7 2 4 Failed 30 | . 2 17 4 7 Catastrophic 6 | . . 3 . 3 Database Lockouts . | . . . . . Manual 16 | . . 14 . 2 Terminals 34 | . . 21 2 11 Fabricators . | . . . . . Repair Stations 10 | . 6 . 4 . Recycling Units . | . . . . . Scanalyzers 3 | . . 3 . . Garrison Access . | . . . . . Terminal Hacks 8 | . . 4 . 4 Record 1 | . . 1 . . Prototype ID Bank 1 | . . 1 . . Branch Access Points 1 | . . . . 1 Alert Level 1 | . . 1 . . Maintenance Status 1 | . . . . 1 Recall Reinforcements 1 | . . . . 1 Zone Layout 2 | . . 1 . 1 Fabricator Hacks . | . . . . . Repair Station Hacks 6 | . 4 . 2 . Scan Component 3 | . 2 . 1 . Repair 3 | . 2 . 1 . Recycling Unit Hacks . | . . . . . Scanalyzer 3 | . . 3 . . Insert Component 2 | . . 2 . . Analyze 1 | . . 1 . . Garrison Access Hacks . | . . . . . Unauthorized Hacks . | . . . . . Terminals . | . . . . . Fabricators . | . . . . . Repair Stations . | . . . . . Recycling Units . | . . . . . Scanalyzers . | . . . . . Garrison Access . | . . . . . Data Cores Recovered 1 | . . 1 . . Used 1 | . . 1 . . Hacking Detections 14 | . 1 6 2 5 Full Trace Events 4 | . . 2 . 2 Feedback Events . | . . . . . Feedback Blocked . | . . . . . Robot Schematics Acquired . | . . . . . Robots Built . | . . . . . Authchips . | . . . . . Time . | . . . . . Total Robot Build Rating . | . . . . . Part Schematics Acquired 1 | . . 1 . . Parts Built . | . . . . . Authchips . | . . . . . Time . | . . . . . Total Part Build Rating . | . . . . . Parts Repaired 3 | . 2 . 1 . Time 90 | . 52 . 38 . Parts Recycled . | . . . . . Recycled Matter . | . . . . . Retrieved Matter . | . . . . . Retrieved Components . | . . . . . Parts Scanalyzed 1 | . . 1 . . Part Schematics Acquired 1 | . . 1 . . Parts Damaged . | . . . . . Bothacking | -11 -10 -9 -8 -8 ------------ Run | Jun Mat Mat Mat Sto Used RIF Installer . | . . . . . Robots Hacked . | . . . . . Non-combat . | . . . . . Combat . | . . . . . Robot Hacks Applied . | . . . . . Relay Couplers Released . | . . . . . Fabnet Peak Effective % . | . . . . . Robots Rewired . | . . . . . Allies Hacked . | . . . . . Hacks Repelled . | . . . . . Allies | -11 -10 -9 -8 -8 -------- Run | Jun Mat Mat Mat Sto Total Allies 2 | . . . . 2 Largest Group 2 | . . . . 2 Highest-Rated Group 62 | . . . . 62 Highest-Rated Ally 31 | . . . . 31 Total Orders . | . . . . . Ally Attacks 22 | . . . . 22 Total Damage 317 | . . . . 317 Kills 2 | . . . . 2 Allies Corrupted . | . . . . . Allies Melted . | . . . . . Intel | -11 -10 -9 -8 -8 ------- Run | Jun Mat Mat Mat Sto Robot Analysis Total . | . . . . . Derelict Logs Recovered . | . . . . . Drone Launches . | . . . . . Drone Recoveries . | . . . . . Exploration | -11 -10 -9 -8 -8 ------------- Run | Jun Mat Mat Mat Sto Turns Passed 2316 | 114 396 888 597 321 Spaces Moved 1261 | 62 181 433 274 311 Core 208 | 3 . . . 205 Treads 397 | . . 347 50 . Legs 496 | 59 181 86 127 43 Wheels 97 | . . . 97 . Hover . | . . . . . Flight 63 | . . . . 63 Fastest Speed 50 | 50 120 120 80 50 Average Speed 113 | 116 120 141 112 71 Slowest Speed 500 | 120 190 260 200 500 Overloaded Moves . | . . . . . Propulsion Burnouts . | . . . . . Robots Hopped . | . . . . . Cave-ins Triggered . | . . . . . Exploration Rate (%) 26 | 6 25 32 22 47 Regions Visited 4 Branch Regions 1 Pre-discovered Areas . | . . . . . Known Exits Taken . | . . . . . Unknown Exits Taken 4 | 1 1 1 1 . Scrap Searched . | . . . . . Spaces Dug 3 | . . 1 . 2 Terrain Destroyed 4 | . . 2 . 2 Melee . | . . . . . Projectile 4 | . . 2 . 2 AOE . | . . . . . Terrain Rammed . | . . . . . Walls Destroyed . | . . . . . Machines Disabled . | . . . . . Actions | -11 -10 -9 -8 -8 --------- Run | Jun Mat Mat Mat Sto Total 1832 | 94 305 607 461 365 Wait 317 | 7 78 105 116 11 Move 1257 | 61 180 432 273 311 Hop . | . . . . . Pick Up 40 | 14 5 7 9 5 Fast Attach 13 | . 2 3 7 1 Attach 24 | 7 4 5 4 4 Detach . | . . . . . Swap 17 | . . 5 5 7 Drop 9 | . . 6 1 2 Fire 61 | 5 36 7 . 13 Melee 93 | . . 37 46 10 Ram 1 | . . . . 1 Kick . | . . . . . Crush . | . . . . . Escape Stasis . | . . . . . Rewire . | . . . . . Trap . | . . . . . Miscellaneous . | . . . . . Route ------- -11/Junkyard -10/Materials -9/Materials -8/Materials (discovered 2 exits: [*Fac] / *Sto) -8/Storage (discovered 1 exit: Rec) History --------- Turn | Location | Event 68 | -11/Junkyard | Discovered new exit (range 15) 115 | -11/Junkyard | Entered Materials 311 | -10/Materials | Build established: Mutant 411 | -10/Materials | Discovered new exit (range 16) 458 | -10/Materials | Repaired Aluminum Leg 485 | -10/Materials | Repaired Aluminum Leg 511 | -10/Materials | Entered another Materials area 511 | -9/Materials | Evolved 2 slots: Utility x2 699 | -9/Materials | Lost 4 parts (1p1u2w) 1083 | -9/Materials | Core integrity fell below 50% 1305 | -9/Materials | Discovered new exit (range 16) 1399 | -9/Materials | Entered another Materials area 1399 | -8/Materials | Evolved 2 slots: Propulsion x2 1550 | -8/Materials | Repaired Imp. Terrain Scanner 1746 | -8/Materials | Discovered new exit (range 16) 1861 | -8/Materials | Discovered new exit (range 16) 1996 | -8/Materials | Entered Storage 2001 | -8/Storage | Build established: Scavenger-Mutant 2032 | -8/Storage | Met a pair of Derelict thieves 2148 | -8/Storage | Core integrity fell below 50% 2183 | -8/Storage | System corruption reached 10% 2197 | -8/Storage | Released all parts (4) 2208 | -8/Storage | Core integrity fell below 20% 2213 | -8/Storage | Lost 9 parts (1p4n3u1w) 2292 | -8/Storage | Identified exit to Recycling 2317 | -8/Storage | Destroyed by G-47 Trooper with Particle Gun Last Messages --------------- 02266_ K-01 Serf collects debris. 02276_ Slug penetrates Wall. 02287_ Connecting with Terminal... >>Recall(Reinforcements) Establishing remote squad link... Recalled reinforcement squad DT8VBXYQBZ. 02287_ ALERT: Suspicious activity at Terminal S014. Dispatching Investigation squad. 02291_ Connecting with Terminal... >>Layout(Zone) Retrieving Zone 3M layout... Downloaded map data. 02292_ Connecting with Terminal... >>Access(Branch) Found 1 branch access point: (62,69) Recycling Map updated. 02295_ UC&%VPAF&PFXQ#T2T5M 02312_ W-25 Informer sends out distress signal. 02313_ Mining Laser destroyed. Map ----- +----------------------------------------------------+ | # #?????#^^ #????# ! % #???????###/###??? | | # #?????# #????# #???????# ##??? | | # #?????# #????# #???????# T#??? | | # #?????# #????# ! ! #???????##" "###?? | | # #?????# #????# % %#???????#! #?? | | # ####### #################/#???????# #?? | | # ?" ??????#== = #?? | | # ? #?????#= = |#?? | | # ^ ^ ?? #?????########?? | | #+########## ^ ???#??????????????? | | ???????????# ??????????????????? | | ???????????# ^ """ """ """ ????????????????? | | ???????????#### """ """ """ ????????????????? | | ??????????????# """ """ """ ??????????????? | | ??????????????# ??????????????? | | ??????????????# ??????????????? | | ??????????????######/############????????????????? | | ??????????????# ##????????????????????????? | | ??????????????# """ "#??#####?????????????????? | | ??????????????#[ """ T#??#"""#?????????????????? | | ?????????????## """ "#??#"R"#?????????????????? | | ??####???????#" #####" "###???????????????? | | ?? #???????#T """g # #???????????????? | | ?? #???????#" """ # #???????????????? | | ?? #???????## """ ; +???????????????? | | ?? #??####### # @"""" #???????????????? | | ?? ##?######"##T###### """" ????????????????? | | ?? #?## ######???## """" ????????????????? | | ?? ##?## ##???????#Y """" ????????????????? | | ?? #??##" "##???????## r ????????????????? | | ?? #??#T ##????????#####+####????????????????? | | ??#########+############## #?????????????????? | | ?? #?????????????????? | | ?? ##????????????????? | | ?? ????????????????? | | ?? ########+#########/#### ##????????????????? | | ??T#??# ## ###+####????????????????? | | ??##??# """"" ## ## ####????????????????? | | ??#???# " " ## ## ????????????????? | | ??#???# """"" ## ## " ????????????????? | | ??#???# """"" ## ###T####????????????????? | | ??#???# " " ## ########????????????????? | | ?????????????????????????????????????????????????? | | ????????????????????????????????????????>????????? | | ?????????????????????????????????????????????????? | | ?????????????????????????????????????????????????? | | ?????????????????????????????????????????????????? | | ?????????????????????????????????????????????????? | | ?????????????????????????????????????????????????? | | | +----------------------------------------------------+ Best States ------------- Heat Dissipation 31 Energy Generation 14 Energy Capacity 265 Matter Stores 300 Matter Capacity 300 Sight Range 16 Terrain Scan Range 16 Terrain Scan Density 110 Additional Mass Support 6 Evasion (%) 55 Targeting Accuracy 5 Recoil Reduction 2 Item Schematics ----------------- Datajack | -9/Materials | Scanalyzed Robot Schematics ------------------ None Fabricated ------------ Nothing Alien Tech Used ----------------- None Achievements -------------- None Challenges ------------ None Game ------ Seed PhasingHeavyDeconstructor Manual? 0 Play Time 00:41:17 Cumulative 44.3 hours Start 2023.07.09 @ 11:17:15 End 2023.07.09 @ 11:58:31 Sessions 1 Manual Loads 0 Difficulty Rogue Special Mode None Game No. 59 Rogue 59 Adventurer 0 Explorer 0 Win Type - Total 0 Types 0/0/0/0/0/0/0/0/0 Lore% 17 Gallery% 30 Achievement% 21 Wizard Run 0 Options --------- ASCII 0 Keyboard 0 Movement Mouse Keybinds 0 Fullscreen 1 Font 24/Smallcaps Map View 76x50 Tactical HUD 1 Map Filters NONE Filters NONE Steam 1 RUN: 00aba59a-5b74-4b7e-9682-3c316a0a7002